Cogmind - Beta 14 @@@ ROGUE MODE // 2024.09.08 @ 12:57:24 Player: Corvi Result: Self-destructed Performance ------------- Evolutions (0) 0 Regions Visited (4) 800 Robots Destroyed (13) 65 Value Destroyed (249) 249 Prototype IDs (2) 40 Alien Tech Used (0) 0 Bonus (0) 0 TOTAL SCORE: 1154 Bonus ------- None Cogmind --------- Core Integrity 35/250 Matter 251/300 Energy 250/250 System Corruption 4% Temperature Cool (0) Movement Core (450) Ox8 Location -9/Mines Parts ------- > --- POWER (1) -------- Ion Engine > --- PROPULSION (2) --- (None) > --- UTILITY (2) ------ Large Storage Unit > --- WEAPON (2) ------- (None) > --- INVENTORY (15) --- Light Ion Engine Heat Sink Medium Storage Unit Structural Scanner Structural Scanner Utility Shielding Utility Shielding EMP Trap Peak State ------------ > --- POWER ------------ Ion Engine > --- PROPULSION ------- Wheel Compact Wheel > --- UTILITY ---------- Large Storage Unit Terrain Scanner > --- WEAPON ----------- Assault Rifle Grenade Launcher > --- INVENTORY -------- Ion Engine Light Ion Engine Heat Sink Medium Storage Unit Structural Scanner Structural Scanner Utility Shielding Utility Shielding EM Pulse Gun Grenade Launcher Grenade Launcher [Rating: 8] Favorites ----------- Power Ion Engine Engine Ion Engine Propulsion Compact Wheel Wheel Compact Wheel Utility Large Storage Unit Device Terrain Scanner Storage Large Storage Unit Weapon EM Pulse Gun Energy Gun EM Pulse Gun Ballistic Gun Assault Rifle Launcher Grenade Launcher Build | -11 -10 -10 -10 -9 ------- Run | Yrd Mat Min Exi Min Slots Evolved . | . . . . . Power . | . . . . . Propulsion . | . . . . . Utility . | . . . . . Weapon . | . . . . . Parts Attached 18 | 8 3 1 . 6 Power 2 | 1 . . . 1 Engine 2 | 1 . . . 1 Core . | . . . . . Reactor . | . . . . . Propulsion 2 | 2 . . . . Treads . | . . . . . Leg . | . . . . . Wheel 2 | 2 . . . . Hover . | . . . . . Flight . | . . . . . Utility 3 | 1 1 1 . . Device 1 | . . 1 . . Storage 2 | 1 1 . . . Processor . | . . . . . Hackware . | . . . . . Protection . | . . . . . Artifact . | . . . . . Weapon 11 | 4 2 . . 5 Energy Gun 4 | 3 . . . 1 Energy Cannon . | . . . . . Ballistic Gun 3 | 1 1 . . 1 Ballistic Cannon . | . . . . . Launcher 4 | . 1 . . 3 Special Weapon . | . . . . . Impact Weapon . | . . . . . Slashing Weapon . | . . . . . Piercing Weapon . | . . . . . Special Melee Weapon . | . . . . . Unidentified Prototypes . | . . . . . Parts Lost 10 | . 1 . . 9 Power 1 | . . . . 1 Propulsion 2 | . . . . 2 Utility 1 | . . . . 1 Weapon 6 | . 1 . . 5 Highest Loss Streak 5 | . 1 . . 5 To Critical Strikes . | . . . . . Average Slot Usage (%) 87 | . 85 100 100 67 Engine 13 | . 14 14 14 11 Wheel 25 | . 28 28 28 12 Device 4 | . . 14 14 1 Storage 14 | . 14 14 14 14 Energy Gun 9 | . 17 . . 1 Ballistic Gun 8 | . 4 14 14 12 Launcher 9 | . 5 14 14 12 Peak Build Rating 8 | 6 7 8 8 7 Average Rating 6 | 5 6 8 8 4 On Entrance 5 | . 6 7 8 8 Naked Turns . | . . . . . Heaviest Build 31 | 14 30 31 31 30 Greatest Support 26 | 26 26 26 26 16 Greatest Overweight (x) 1 | . 1 1 1 1 Average Overweight (x) . | . . 1 1 1 Largest Inventory Capacity 15 | 8 15 15 15 15 Average Capacity 13 | 7 13 15 15 15 Most Carried 12 | 2 12 11 11 11 Average Carried 8 | 1 7 11 11 8 Final Capacity 15 | 8 15 15 15 15 Final Carried 12 | 2 12 11 11 8 Class Distribution -------------------- 100% | Mutant Dominant Class ---------------- Mutant | -10/Materials Mutant | -10/Mines Mutant | -10/Exiles Mutant | -9/Mines Resources | -11 -10 -10 -10 -9 ----------- Run | Yrd Mat Min Exi Min Matter Collected 453 | 207 115 . . 131 Remotely . | . . . . . Salvage Created 187 | . 126 . . 61 Parts 20 | . 10 . . 10 Haulers Intercepted . | . . . . . Recyclers Shooed . | . . . . . Parts Field Recycled . | . . . . . Retrieved Matter . | . . . . . Parts Self-Destructed . | . . . . . Prevented . | . . . . . Kills | -11 -10 -10 -10 -9 ------- Run | Yrd Mat Min Exi Min Combat Hostiles Destroyed 12 | . 5 . . 7 Guns 3 | . 2 . . 1 AOE 9 | . 3 . . 6 Classes Destroyed 6 | . 4 . . 2 Worker 1 | . 1 . . . Watcher 1 | . 1 . . . Swarmer 7 | . 3 . . 4 Grunt 3 | . 2 . . 1 Duelist 1 | . . . . 1 Assembled 1 | . . . . 1 Best Kill Streak 4 | . 4 . . 4 Combat Bots Only 4 | . 3 . . 4 Max Kills in Single Turn 3 | . 3 . . 2 Gunslinging . | . . . . . Exploded 2 | . 2 . . 2 Melee . | . . . . . Uniques/NPCs Destroyed . | . . . . . Combat | -11 -10 -10 -10 -9 -------- Run | Yrd Mat Min Exi Min Hostile Shots Fired 40 | . 14 . . 26 Missed 7 | . 3 . . 4 Damage Taken 740 | . 190 . . 550 Core 215 | . . . . 215 Absorbed by Shields . | . . . . . Core Remaining (%) 100 | 100 . . . . Volleys Fired 22 | . 11 . . 11 Largest 2 | . 2 . . 2 Hottest 80 | . 80 . . 60 Shots Fired 36 | . 16 . . 20 Gun 23 | . 13 . . 10 Cannon . | . . . . . Launcher 13 | . 3 . . 10 Special . | . . . . . Kinetic 14 | . 6 . . 8 Thermal . | . . . . . Explosive 13 | . 3 . . 10 Electromagnetic 9 | . 7 . . 2 Robot Hit Streak 6 | . 3 . . 6 Robot Miss Streak 2 | . 2 . . 2 Penetration Max . | . . . . . Secondary Targets . | . . . . . Shots Hit Robots 20 | . 10 . . 10 Core Hits 27 | . 13 . . 14 Critical Kills . | . . . . . Critical Parts Destroyed . | . . . . . Critical Strikes . | . . . . . Melee Attacks . | . . . . . Impact . | . . . . . Slashing . | . . . . . Piercing . | . . . . . Sneak Attacks . | . . . . . Combat Hostiles . | . . . . . Follow-up Attacks . | . . . . . Damage Inflicted 878 | . 309 . . 569 Guns 191 | . 132 . . 59 Cannons . | . . . . . Explosions 687 | . 177 . . 510 Melee . | . . . . . Ramming . | . . . . . Kinetic 97 | . 50 . . 47 Thermal . | . . . . . Explosive 687 | . 177 . . 510 Electromagnetic 94 | . 82 . . 12 Impact . | . . . . . Slashing . | . . . . . Piercing . | . . . . . Highest Corruption 4 | . . . . 4 Average Corruption 3 | . . . . 3 Corruption Purged . | . . . . . Corruption Blocked . | . . . . . Overload Shots . | . . . . . Overflow Damage 9 | . . . . 9 Projectiles . | . . . . . Explosions 9 | . . . . 9 Melee . | . . . . . Knockbacks . | . . . . . Impact . | . . . . . Kinetic . | . . . . . Secondary . | . . . . . Self-Inflicted Damage 240 | . 63 . . 177 Shots 10 | . 3 . . 7 Rammed . | . . . . . Targets Rammed . | . . . . . Kicked . | . . . . . Crushed . | . . . . . Highest Temperature 36 | . 36 . . 6 Average Temperature 9 | . 13 . . 2 Received Heat Transfer 99 | . 45 . . 54 Siege Activations . | . . . . . Robots Corrupted . | . . . . . Combat Hostiles . | . . . . . Parts Fried 1 | . 1 . . . Impact Corruptions . | . . . . . Robots Melted . | . . . . . Combat Hostiles . | . . . . . Parts Melted . | . . . . . Heat Transferred . | . . . . . Parts Sabotaged . | . . . . . Parts Stolen . | . . . . . Parts Stripped . | . . . . . Power Chain Reactions . | . . . . . Alert | -11 -10 -10 -10 -9 ------- Run | Yrd Mat Min Exi Min Peak Influence 180 | . 180 . . 158 Initial . | . . . . . Average 48 | . 48 . . 98 Maximum Alert Level . | . . . . . Low Security (%) 100 | 100 100 100 . 100 Level 1 . | . . . . . Level 2 . | . . . . . Level 3 . | . . . . . Level 4 . | . . . . . Level 5 . | . . . . . High Security . | . . . . . Max Security . | . . . . . Squads Dispatched . | . . . . . Investigation . | . . . . . Extermination . | . . . . . Reinforcement . | . . . . . Assault . | . . . . . Garrison . | . . . . . Intercept . | . . . . . Searches Triggered . | . . . . . Construction Impeded . | . . . . . Haulers Reinforced . | . . . . . Active Scanning Responses . | . . . . . Cargo Convoy Interrupts . | . . . . . Stealth | -11 -10 -10 -10 -9 --------- Run | Yrd Mat Min Exi Min Distress Signals . | . . . . . Communications Jammed . | . . . . . Distress Signals . | . . . . . Times Spotted 21 | . 6 . . 15 Peak Tracking Total 13 | . 3 . . 13 Tactical Retreats . | . . . . . Traps | -11 -10 -10 -10 -9 ------- Run | Yrd Mat Min Exi Min Traps Triggered . | . . . . . Indirectly . | . . . . . Trap Hack Attempts . | . . . . . Triggered . | . . . . . Disarmed . | . . . . . Reprogrammed . | . . . . . Reused . | . . . . . Traps Extracted . | . . . . . Installed . | . . . . . Triggered . | . . . . . Most Traps Carried 1 | . . . . 1 Machines | -11 -10 -10 -10 -9 ---------- Run | Yrd Mat Min Exi Min Machines Disabled . | . . . . . Max in Single Turn . | . . . . . Machines Repaired . | . . . . . Machines Dismantled . | . . . . . Machines Sabotaged . | . . . . . Overloaded Fab Kills . | . . . . . Hacking | -11 -10 -10 -10 -9 --------- Run | Yrd Mat Min Exi Min Machines Accessed 2 | . 2 . . . Terminals 2 | . 2 . . . Fabricators . | . . . . . Repair Stations . | . . . . . Recycling Units . | . . . . . Scanalyzers . | . . . . . Garrison Access . | . . . . . Total Hacks 4 | . 4 . . . Successful 2 | . 2 . . . Failed 2 | . 2 . . . Catastrophic . | . . . . . Database Lockouts . | . . . . . Manual 2 | . 2 . . . Terminals 4 | . 4 . . . Fabricators . | . . . . . Repair Stations . | . . . . . Recycling Units . | . . . . . Scanalyzers . | . . . . . Garrison Access . | . . . . . Terminal Hacks 2 | . 2 . . . Prototype ID Bank 1 | . 1 . . . Hauler Manifests 1 | . 1 . . . Fabricator Hacks . | . . . . . Repair Station Hacks . | . . . . . Recycling Unit Hacks . | . . . . . Scanalyzer . | . . . . . Garrison Access Hacks . | . . . . . Unauthorized Hacks . | . . . . . Terminals . | . . . . . Fabricators . | . . . . . Repair Stations . | . . . . . Recycling Units . | . . . . . Scanalyzers . | . . . . . Garrison Access . | . . . . . Data Cores Recovered . | . . . . . Used . | . . . . . Hacking Detections 2 | . 2 . . . Full Trace Events . | . . . . . Feedback Events . | . . . . . Feedback Blocked . | . . . . . Robot Schematics Acquired . | . . . . . Robots Built . | . . . . . Authchips . | . . . . . Time . | . . . . . Total Robot Build Rating . | . . . . . Part Schematics Acquired . | . . . . . Parts Built . | . . . . . Authchips . | . . . . . Time . | . . . . . Total Part Build Rating . | . . . . . Parts Repaired . | . . . . . Time . | . . . . . Parts Recycled . | . . . . . Recycled Matter . | . . . . . Retrieved Matter . | . . . . . Retrieved Components . | . . . . . Parts Scanalyzed . | . . . . . Part Schematics Acquired . | . . . . . Parts Damaged . | . . . . . Bothacking | -11 -10 -10 -10 -9 ------------ Run | Yrd Mat Min Exi Min Used RIF Installer . | . . . . . Robots Hacked . | . . . . . Non-combat . | . . . . . Combat . | . . . . . Robot Hacks Applied . | . . . . . Relay Couplers Released . | . . . . . Fabnet Peak Effective % . | . . . . . Robots Rewired . | . . . . . Allies Hacked . | . . . . . Hacks Repelled . | . . . . . Allies | -11 -10 -10 -10 -9 -------- Run | Yrd Mat Min Exi Min Total Allies . | . . . . . Largest Group . | . . . . . Highest-Rated Group . | . . . . . Highest-Rated Ally . | . . . . . Total Orders . | . . . . . Ally Attacks . | . . . . . Total Damage . | . . . . . Kills . | . . . . . Allies Corrupted . | . . . . . Allies Melted . | . . . . . Intel | -11 -10 -10 -10 -9 ------- Run | Yrd Mat Min Exi Min Robot Analysis Total . | . . . . . Derelict Logs Recovered . | . . . . . Drone Launches . | . . . . . Drone Recoveries . | . . . . . Exploration | -11 -10 -10 -10 -9 ------------- Run | Yrd Mat Min Exi Min Turns Passed 924 | 63 452 63 222 124 Spaces Moved 803 | 55 403 60 212 73 Core 2 | 2 . . . . Treads . | . . . . . Legs . | . . . . . Wheels 801 | 53 403 60 212 73 Hover . | . . . . . Flight . | . . . . . Fastest Speed 50 | 50 90 105 105 115 Average Speed 102 | 89 100 105 105 115 Slowest Speed 115 | 100 105 105 105 115 Overloaded Moves . | . . . . . Propulsion Burnouts . | . . . . . Robots Hopped . | . . . . . Cave-ins Triggered . | . . . . . Exploration Rate (%) 28 | 4 48 10 60 19 Regions Visited 4 Branch Regions 3 Pre-discovered Areas . | . . . . . Known Exits Taken . | . . . . . Unknown Exits Taken 4 | 1 1 1 1 . Scrap Searched . | . . . . . Spaces Dug 7 | . . . . 7 Terrain Destroyed 94 | . 26 . . 68 Melee . | . . . . . Projectile . | . . . . . AOE 94 | . 26 . . 68 Terrain Rammed . | . . . . . Walls Destroyed . | . . . . . Machines Disabled . | . . . . . Actions | -11 -10 -10 -10 -9 --------- Run | Yrd Mat Min Exi Min Total 859 | 64 432 60 211 92 Wait 4 | . 4 . . . Move 799 | 54 402 59 211 73 Hop . | . . . . . Pick Up 15 | 2 11 . . 2 Fast Attach 7 | 6 1 . . . Attach 7 | . 1 1 . 5 Detach . | . . . . . Swap 4 | 2 1 . . 1 Drop 1 | . 1 . . . Fire 22 | . 11 . . 11 Melee . | . . . . . Ram . | . . . . . Kick . | . . . . . Crush . | . . . . . Escape Stasis . | . . . . . Rewire . | . . . . . Trap . | . . . . . Miscellaneous . | . . . . . Route ------- -11/Scrapyard -10/Materials (discovered 2 exits: [*Mat] / [*Min]) -10/Mines -10/Exiles -9/Mines History --------- Turn | Location | Event 12 | -11/Scrapyard | Discovered new exit (range 16) 64 | -11/Scrapyard | Entered Materials 187 | -10/Materials | Discovered new exit (range 5) 304 | -10/Materials | Build established: Mutant 408 | -10/Materials | Discovered new exit (range 4) 516 | -10/Materials | Entered Mines 542 | -10/Mines | Met a Derelict bent on vengeance 572 | -10/Mines | Deemed a non-threat by the Exiles lab entrance 573 | -10/Mines | Discovered new exit (range 5) 579 | -10/Mines | Entered Exiles 579 | -10/Exiles | Found Exiles lab abandoned 790 | -10/Exiles | Discovered new exit (range 10) 801 | -10/Exiles | Entered Mines 846 | -9/Mines | Lost 5 parts (1p1n1u2w) 901 | -9/Mines | Assembled infested the area 911 | -9/Mines | Found a hidden stash of uninstalled traps 918 | -9/Mines | Core integrity fell below 50% 924 | -9/Mines | Core integrity fell below 20% 925 | -9/Mines | Self-destructed Last Messages --------------- Acquired 21 matter. The unstable cave ceiling collapses. Acquired Assault Rifle. C-30 ARC bursts open, deploying its payload. S-10 Pest unfolds itself. S-10 Pest destroyed. Acquired 110 matter. ALERT: Infestation in the mines, dispatching Demolisher response squad. A stash of uninstalled traps is collected here! Acquired EMP Trap. Com. Wheel destroyed. System corrupted by crushing effect (+1). as-83347 destroyed. Grenade Launcher destroyed. System corrupted by crushing effect (+3). Knocked back. Assault Rifle destroyed. Grenade Launcher destroyed. Destroyed Grenade Launcher. as-68856 destroyed. Map ----- +----------------------------------------------------+ | | | | | | | | | | | | | | | | | | | ?????????????????????????????? | | ?????????????????????????????? | | ?????????????????????????????? | | ?????????????????????????????? | | ?????????????????????????????? | | ?????????????????????????????? | | ?????????????????????????????? | | ?????????????????????????????? | | ?????????????????????????????? | | ?????????????????????????????? | | ????????????????????????###### | | ????????????????######### | | ????????????????# | | ???????##??###### ####### | | ???#### # ## #?????# """ | | ???# ######?????# """ | | ???# @ ###????????# """ | | ???# a #????????# | | ???# a a #????????###### | | ???## % #?????????????? | | ????## ##?????????????? | | ?????## #a ####??????????????? | | ???????##aa#?????????????????? | | ????????# #?????????????????? | | ????????# #?????????????????? | | ???????? #?????????????????? | | ??????? #?????????????????? | | ??????? ?????????????????? | | ?????? ?????????????????? | | ??????# ?????????????????? | | ??????## ????????????????? | | ???????# ????????????????? | | ???????# ????????????????? | | ???????## ????????????????? | | ?????????# ?????????????????? | | ?????????????????????????????? | | ?????????????????????????????? | | ?????????????????????????????? | | ?????????????????????????????? | | ?????????????????????????????? | | ?????????????????????????????? | +----------------------------------------------------+ Best States ------------- Heat Dissipation 25 Energy Generation 10 Energy Capacity 250 Matter Stores 280 Matter Capacity 300 Sight Range 16 Terrain Scan Range 14 Terrain Scan Density 10 Evasion (%) 42 Item Schematics ----------------- None Robot Schematics ------------------ None Fabricated ------------ Nothing Alien Tech Used ----------------- None Achievements -------------- None Challenges ------------ None Game ------ Seed ThermalVortexBallwheel Manual? 0 Play Time 00:10:29 Cumulative 14.1 hours Start 2024.09.08 @ 12:48:24 End 2024.09.08 @ 12:57:24 Sessions 1 Manual Loads 0 Difficulty Rogue Special Mode None Game No. 17 Rogue 17 Adventurer 0 Explorer 0 Win Type - Total 0 Types 0/0/0/0/0/0/0/0/0 Lore% 6 Gallery% 17 Achievement% 15 Wizard Run 0 Options --------- Layout 0 ASCII 0 Keyboard 0 Movement Arrows Keybinds 0 Fullscreen 1 Font 18/SmallcapsGlow Map View 76x50 Zoom Use 7% Tactical HUD 0 Map Filters NONE Filters NONE Steam 0 RUN: f2657696-713b-47f9-8b5c-187943959809